fUSD/lending_fUSD_20250427
["ID","MTS","AMOUNT","RATE_DAILY","PERIOD"]
[359161904,1745753437530,-400.0,0.00019868,2]
[359161905,1745753437540,-400.0,0.00019868,2]
[359161906,1745753437549,-400.0,0.00019868,2]
[359161907,1745753437559,-400.0,0.00019868,2]
[359161908,1745753437568,-400.0,0.00019868,2]
[359161909,1745753437577,-400.0,0.00019868,2]
[359161910,1745753437587,-400.0,0.00019868,2]
[359161911,1745753437596,-424.77,0.00019868,2]
[359161912,1745753437605,-400.0,0.00019868,2]
[359161913,1745753437615,-400.0,0.00019868,2]
[359161914,1745753437624,-400.0,0.00019868,2]
[359161915,1745753437634,-400.0,0.00019868,2]
[359161916,1745753437644,-400.0,0.00019868,2]
[359161917,1745753437654,-400.0,0.00019868,2]
[359161918,1745753437663,-400.0,0.00019868,2]
[359161919,1745753437673,-400.0,0.00019868,2]
[359161920,1745753437684,-711.51,0.00019868,2]
[359161921,1745753437693,-400.0,0.00019868,2]
[359161922,1745753437703,-400.0,0.00019868,2]
[359161923,1745753437712,-400.0,0.00019868,2]
[359161924,1745753437721,-400.0,0.00019868,2]
[359161925,1745753437731,-301.31277297,0.00019868,2]
[359161926,1745753437741,-400.0,0.00019868,2]
[359161927,1745753437750,-1231.75,0.00019868,2]
[359161928,1745753437760,-200.36369246,0.00019868,2]
[359161929,1745753437769,-400.0,0.00019868,2]
[359161930,1745753437779,-400.0,0.00019868,2]
[359161931,1745753437788,-1782.13,0.00019868,2]
[359161932,1745753437798,-400.0,0.00019868,2]
[359161934,1745753437808,-400.0,0.00019868,2]
[359161936,1745753437817,-400.0,0.00019868,2]
[359161938,1745753437827,-456.61,0.00019868,2]
[359161940,1745753437837,-476.55,0.00019868,2]
[359161942,1745753437847,-400.0,0.00019868,2]
[359161944,1745753437856,-429.08854691,0.00019868,2]
[359161947,1745753437872,-697.7923679,0.00019868,2]
[359161949,1745753437883,-391.83908519,0.00019868,2]
[359161951,1745753437892,-570.58,0.00019868,2]
[359161953,1745753437902,-400.0,0.00019868,2]
[359161955,1745753437912,-400.0,0.00019868,2]
[359161957,1745753437921,-259.18296319,0.00019868,2]
[359161961,1745753437947,-244.19703681,0.00019868,2]
[359161963,1745753437956,-400.0,0.00019868,2]
[359161965,1745753437965,-400.0,0.00019868,2]
[359161967,1745753437974,-400.0,0.00019868,2]
[359161969,1745753437983,-400.0,0.00019868,2]
[359161971,1745753437993,-400.0,0.00019868,2]
[359161973,1745753438002,-400.0,0.00019868,2]
[359161975,1745753438011,-400.0,0.00019868,2]
[359161977,1745753438020,-400.0,0.00019868,2]
[359161979,1745753438029,-1925.3,0.00019868,2]
[359161981,1745753438039,-400.0,0.00019868,2]
[359161983,1745753438048,-400.0,0.00019868,2]
[359161985,1745753438057,-400.0,0.00019868,2]
[359161987,1745753438066,-2092.85,0.00019868,2]
[359161989,1745753438076,-756.06,0.00019868,2]
[359161991,1745753438085,-194.5930014,0.00019868,2]
[359161993,1745753438095,-7756.11,0.00019868,2]
[359161995,1745753438104,-415.06,0.00019868,2]
[359161997,1745753438113,-400.0,0.00019868,2]
[359161999,1745753438122,-400.0,0.00019868,2]
[359162001,1745753438132,-359.21247092,0.00019868,2]
[359162033,1745753439863,-40.78752908,0.00019868,2]
[359162034,1745753439873,-400.0,0.00019868,2]
[359162035,1745753439883,-535.81208174,0.00019868,2]
[359162036,1745753439893,-460.55,0.00019868,2]
[359162037,1745753439903,-400.0,0.00019868,2]
[359162038,1745753439913,-430.13,0.00019868,2]
[359162039,1745753439922,-400.0,0.00019868,2]
[359162040,1745753439932,-400.0,0.00019868,2]
[359162041,1745753439942,-400.0,0.00019868,2]
[359162042,1745753439953,-400.0,0.00019868,2]
[359162043,1745753439962,-29036.34731608,0.00019868,2]
[359162044,1745753440076,-775.99469973,0.00019868,2]
[359162052,1745753442445,-276.79516028,0.00019572,2]
[359162054,1745753442659,-803.18597972,0.00019572,2]
[359162055,1745753442668,-4540.29249436,0.00019868,2]
[359162129,1745753445359,-3052.01204936,0.00019868,2]
[359162133,1745753470719,356.79359885,0.00041,30]
[359162134,1745753502428,1000.0,0.00041095,30]
[359162135,1745753531618,4000.0,0.00041095,30]
[359162136,1745753534055,1787.88,0.00041096,30]
[359162137,1745753538718,500.0,0.0004007,30]
[359162138,1745753539191,500.0,0.00040153,30]
[359162139,1745753539556,500.0,0.00040431,30]
[359162140,1745753539916,500.0,0.00040586,30]
[359162141,1745753540269,500.0,0.00040662,30]
[359162142,1745753582205,488.17178078,0.00018915,2]
[359162143,1745753582226,119.7096291,0.00018915,2]
[359162144,1745753586047,763.0,0.000407,30]
[359162147,1745753594187,10000.0,0.0002,10]
[359162148,1745753605818,1416.65,0.00018915,2]
[359162149,1745753661470,3076.351577,0.0004109,31]
[359162150,1745753689424,153.79,0.000335,31]
[359162151,1745753689689,153.79,0.000335,31]
[359162152,1745753689734,153.79,0.000366,31]
[359162153,1745753689773,153.79,0.000366,31]
[359162154,1745753689810,153.79,0.000366,31]
[359162155,1745753689853,153.79,0.000397,31]
[359162156,1745753689901,153.79,0.000366,31]
[359162157,1745753689952,153.79,0.000397,31]
[359162158,1745753690014,153.79,0.000397,31]
[359162159,1745753690066,153.79,0.000397,31]
[359162160,1745753778208,281.27,0.00016712,2]
[359162161,1745753803669,150.0,0.00039,30]
[359162162,1745753837958,400.13,0.00017009,2]
[359162163,1745753837985,500.0,0.00040794,30]
[359162164,1745753838156,400.13,0.00019273,2]
[359162165,1745753838285,500.0,0.00040951,30]
[359162166,1745753909881,1638.623,0.00037762,49]
[359162167,1745753910021,163.079,0.00037762,49]
[359162168,1745753919418,20000.0,0.00041095,30]
[359162169,1745753937135,1333.0,0.00040658,120]
[359162170,1745754024558,1000.0,0.00018914,2]
[359162171,1745754097824,395.79,0.00041095,120]
[359162172,1745754101694,157.75,0.0004,30]
[359162173,1745754102122,157.75,0.0004,30]
[359162174,1745754137604,500.0,0.00040511,30]
[359162175,1745754147881,500.0,0.00041091,30]
[359162176,1745754157748,171.1,0.00036986,30]
[359162177,1745754224721,1345.06,0.00018902,2]
[359162179,1745754291958,153.88,0.000335,31]
[359162180,1745754292016,153.88,0.000366,31]
[359162181,1745754292079,153.88,0.000366,31]
[359162182,1745754292138,153.88,0.000397,31]
[359162183,1745754292186,153.88,0.000397,31]
[359162184,1745754347202,186.99,0.00032877,30]
[359162186,1745754407467,2000.0,0.00018873,2]
[359162188,1745754436018,500.0,0.00040064,30]
[359162189,1745754436329,500.0,0.0004089,30]
[359162190,1745754436710,500.0,0.00040986,30]
[359162192,1745754541425,153.93,0.00018907,2]
[359162193,1745754552460,20002.16,0.00041095,30]
[359162197,1745754587928,152.7,0.00015119,2]
[359162198,1745754595130,1239.42,0.00018891,2]
[359162204,1745754631590,-669.92949261,0.00019744,2]
[359162205,1745754631696,-230.07050739,0.00019744,2]
[359162206,1745754631705,-200.0,0.00019756,2]
[359162207,1745754631714,-200.0,0.00019763,2]
[359162208,1745754631723,-470.23,0.00019768,2]
[359162209,1745754631732,-200.0,0.00019768,2]
[359162210,1745754631741,-500.0,0.00019769,2]
[359162211,1745754631750,-150.81618267,0.00019798,2]
[359162212,1745754631759,-1131.1651859,0.00019799,2]
[359162213,1745754631768,-150.81618265,0.00019813,2]
[359162214,1745754631778,-150.81618265,0.00019827,2]
[359162215,1745754631787,-150.81618265,0.00019842,2]
[359162216,1745754631795,-150.81618265,0.00019856,2]
[359162217,1745754631804,-7.79120023,0.00019866,2]
[359162218,1745754631825,-1192.20879977,0.00019866,2]
[359162219,1745754631834,-534.77300255,0.00019868,2]
[359162220,1745754631843,-289.32639652,0.00019868,2]
[359162221,1745754631858,-10.67360348,0.00019868,2]
[359162222,1745754631867,-1923.06499328,0.00019869,2]
[359162271,1745754632689,600.0,0.00041096,30]
[359162284,1745754637584,-1008.39561349,0.00019869,2]
[359162285,1745754637637,-940.27,0.00019869,2]
[359162286,1745754637649,-2112.07874154,0.00019869,2]
[359162287,1745754637660,-7475.3396246,0.00019869,2]
[359162288,1745754637696,-6132.246,0.00019869,2]
[359162289,1745754637747,-1048.46223297,0.00019869,2]
[359162290,1745754637758,-287.116,0.00019869,2]
[359162291,1745754637769,-546.42,0.00019869,2]
[359162292,1745754637800,-11330.01436143,0.00019869,2]
[359162293,1745754637810,-150.81618265,0.00019871,2]
[359162294,1745754637819,-500.0,0.00019873,2]
[359162295,1745754637830,-500.0,0.00019873,2]
[359162296,1745754637839,-150.81618265,0.00019885,2]
[359162297,1745754637851,-787.0,0.00019895,2]
[359162298,1745754637860,-796.0,0.00019896,2]
[359162299,1745754637869,-877.0,0.00019896,2]
[359162300,1745754637878,-879.601,0.00019896,2]
[359162301,1745754637887,-400.0,0.00019897,2]
[359162302,1745754637896,-400.0,0.00019897,2]
[359162303,1745754637906,-212.19690958,0.00019897,2]
[359162305,1745754637915,-420.78904044,0.00019897,2]
[359162307,1745754637924,-400.0,0.00019897,2]
[359162309,1745754637936,-206.5314721,0.00019897,2]
[359162311,1745754637945,-400.0,0.00019897,2]
[359162313,1745754637955,-481.31,0.00019897,2]
[359162315,1745754637964,-400.0,0.00019897,2]
[359162317,1745754637973,-400.0,0.00019897,2]
[359162319,1745754637983,-400.0,0.00019897,2]
[359162320,1745754637992,-400.0,0.00019897,2]
[359162322,1745754638002,-302.46125621,0.00019897,2]
[359162324,1745754638011,-400.0,0.00019897,2]
[359162326,1745754638020,-400.0,0.00019897,2]
[359162327,1745754638030,-400.0,0.00019897,2]
[359162329,1745754638039,-400.0,0.00019897,2]
[359162331,1745754638048,-64.36845067,0.00019897,2]
[359162531,1745754639952,-335.63154933,0.00019897,2]
[359162533,1745754639961,-34.572558,0.00019897,2]
[359162547,1745754640265,-365.427442,0.00019897,2]
[359162548,1745754640275,-400.0,0.00019897,2]
[359162550,1745754640285,-24.52984389,0.00019897,2]
[359162551,1745754640296,-272.46215447,0.00019897,2]
[359162730,1745754642723,-168.89800164,0.00019897,2]
[359162731,1745754642733,-400.0,0.00019897,2]
[359162732,1745754642743,-400.0,0.00019897,2]
[359162733,1745754642753,-122.20531392,0.00019897,2]
[359162809,1745754645748,-277.79468608,0.00019897,2]
[359162810,1745754645758,-430.15,0.00019897,2]
[359162811,1745754645767,-400.0,0.00019897,2]
[359162812,1745754645776,-400.0,0.00019897,2]
[359162813,1745754645786,-400.0,0.00019897,2]
[359162814,1745754645796,-427.47,0.00019897,2]
[359162815,1745754645805,-183.20832348,0.00019897,2]
[359162816,1745754645832,-216.79167652,0.00019897,2]
[359162817,1745754645842,-400.0,0.00019897,2]
[359162818,1745754645855,-400.0,0.00019897,2]
[359162819,1745754645865,-400.0,0.00019897,2]
[359162820,1745754645874,-400.0,0.00019897,2]
[359162821,1745754645884,-400.0,0.00019897,2]
[359162822,1745754645893,-417.05574861,0.00019897,2]
[359162823,1745754645902,-400.0,0.00019897,2]
[359162824,1745754645911,-400.0,0.00019897,2]
[359162825,1745754645921,-400.0,0.00019897,2]
[359162826,1745754645932,-2030.76223229,0.00019897,2]
[359162827,1745754645947,-368.91631683,0.00019897,2]
[359162828,1745754645962,-543.46145088,0.00019897,2]
[359162830,1745754645972,-400.0,0.00019897,2]
[359162832,1745754645983,-400.0,0.00019897,2]
[359162833,1745754645992,-400.0,0.00019897,2]
[359162835,1745754646002,-400.0,0.00019897,2]
[359162837,1745754646011,-400.0,0.00019897,2]
[359162839,1745754646022,-891.88,0.00019897,2]
[359162840,1745754646031,-448.1,0.00019897,2]
[359162841,1745754646041,-400.0,0.00019897,2]
[359162842,1745754646050,-400.0,0.00019897,2]
[359162843,1745754646060,-216.31221694,0.00019897,2]
[359162844,1745754646075,-183.68778306,0.00019897,2]
[359162845,1745754646085,-400.0,0.00019897,2]
[359162846,1745754646094,-487.83,0.00019897,2]
[359162847,1745754646104,-400.0,0.00019897,2]
[359162848,1745754646113,-401.28,0.00019897,2]
[359162849,1745754646122,-400.0,0.00019897,2]
[359162850,1745754646132,-400.0,0.00019897,2]
[359162852,1745754646142,-1180.43,0.00019897,2]
[359162854,1745754646151,-782.77,0.00019897,2]
[359162856,1745754646161,-400.0,0.00019897,2]
[359162857,1745754646170,-400.0,0.00019897,2]
[359162858,1745754646180,-13484.77868941,0.00019898,2]
[359162859,1745754646192,-3405.55913296,0.00019898,2]
[359162864,1745754656373,12000.0,0.00039,30]
[359162865,1745754666009,450.0,0.00041096,30]
[359162866,1745754687287,1108.53967746,0.00019999,5]
[359162867,1745754699197,190.0,0.00041096,30]
[359162868,1745754718682,449.47234907,0.00040658,120]
[359162869,1745754736677,500.0,0.00040142,30]
[359162870,1745754776576,30000.0,0.00041096,30]
[359162871,1745754891449,1007.24,0.00041095,30]
[359162872,1745754993701,379.3,0.00041095,120]
[359162873,1745754998745,157.75,0.0004,30]
[359162874,1745754999015,157.75,0.0004,30]
[359162875,1745755013477,187.0,0.00041096,30]
[359162876,1745755035308,500.0,0.00041095,30]
[359162877,1745755048187,500.0,0.00040524,30]
[359162878,1745755049870,50000.0,0.00041,60]
[359162879,1745755063178,1491.0003709,0.00018974,2]
[359162880,1745755063203,4508.9996291,0.00018974,2]
[359162881,1745755076615,197.65,0.00041,31]
[359162882,1745755109873,1347.219,0.00037762,49]
[359162883,1745755110041,163.08064952,0.00037762,49]
[359162884,1745755159828,38400.0,0.00041096,30]
[359162885,1745755197237,500.0,0.0004109,30]
[359162886,1745755197598,1230.73874161,0.00041095,30]
[359162887,1745755211017,250.0,0.0004109,30]
[359162888,1745755225300,500.0,0.0004109,30]
[359162889,1745755235934,500.0,0.0004109,30]
[359162890,1745755255600,500.0,0.0004109,30]
[359162891,1745755264903,250.0,0.00017,2]
[359162892,1745755266020,300.0,0.00019,2]
[359162893,1745755340940,360.11,0.00016947,2]
[359162894,1745755341146,360.11,0.00019211,2]
[359162895,1745755349622,1000.0,0.00018865,2]
[359162896,1745755485223,-152.0,0.00019391,2]
[359162897,1745755489983,-122.72356,0.00019391,2]
[359162899,1745755635519,998.3992,0.00041095,30]
[359162900,1745755636026,186.99,0.00032877,30]
[359162906,1745755831874,-200.0,0.00019512,2]
[359162907,1745755831884,-200.0,0.00019533,2]
[359162908,1745755831894,-1200.0,0.00019536,2]
[359162909,1745755831903,-7000.0,0.00019537,2]
[359162916,1745755832135,-5000.0,0.00019537,2]
[359162920,1745755832150,-164.33,0.00019538,2]
[359162923,1745755832160,-606.39444881,0.00019567,2]
[359162926,1745755832170,-727.22778263,0.00019752,2]
[359162928,1745755832179,-727.22778262,0.00019796,2]
[359162930,1745755832189,-154.58658726,0.00019797,2]
[359162932,1745755832198,-904.9321488,0.00019799,2]
[359162933,1745755832208,-154.58658721,0.00019812,2]
[359162934,1745755832218,-154.58658721,0.00019826,2]
[359162935,1745755832227,-154.58658721,0.00019841,2]
[359162936,1745755832237,-18312.32894663,0.00019852,2]
[359162937,1745755832247,-154.58658721,0.00019856,2]
[359162938,1745755832256,-6190.0,0.00019864,2]
[359162939,1745755832266,-285.18,0.00019864,2]
[359162940,1745755832275,-154.58658721,0.00019871,2]
[359162941,1745755832285,-500.0,0.00019873,2]
[359162942,1745755832295,-154.58658721,0.00019885,2]
[359162943,1745755832305,-253.32362528,0.00019895,2]
[359162944,1745755832314,-500.97,0.00019895,2]
[359162945,1745755832324,-465.91530338,0.00019895,2]
[359162946,1745755832334,-400.0,0.00019895,2]
[359162947,1745755832343,-417.37636572,0.00019895,2]
[359162948,1745755832353,-400.0,0.00019895,2]
[359162949,1745755832363,-480.10729581,0.00019895,2]
[359162950,1745755832372,-412.23,0.00019895,2]
[359162951,1745755832380,-400.0,0.00019895,2]
[359162952,1745755832389,-400.0,0.00019895,2]
[359162953,1745755832397,-400.0,0.00019895,2]
[359162954,1745755832407,-400.0,0.00019895,2]
[359162955,1745755832415,-400.0,0.00019895,2]
[359162956,1745755832424,-400.0,0.00019895,2]
[359162957,1745755832433,-467.51,0.00019895,2]
[359162958,1745755832443,-400.0,0.00019895,2]
[359162959,1745755832452,-670.18129635,0.00019896,2]
[359162960,1745755832464,-7000.73147567,0.00019896,2]
[359162961,1745755837702,-1131.24,0.00019895,2]
[359162962,1745755837713,-17662.04998198,0.00019896,2]
[359162967,1745755838259,-14192.57166392,0.00019896,2]
[359162968,1745755838271,-34618.78328458,0.00019896,2]
[359162969,1745755838280,-400.0,0.00019896,2]
[359162970,1745755838290,-400.0,0.00019896,2]
[359162971,1745755838299,-538.75,0.00019896,2]
[359162972,1745755838309,-400.0,0.00019896,2]
[359162973,1745755838319,-400.0,0.00019896,2]
[359162974,1745755838328,-400.0,0.00019896,2]
[359162975,1745755838339,-500.0,0.00019896,2]
[359162976,1745755838349,-400.0,0.00019896,2]
[359162977,1745755838359,-400.0,0.00019896,2]
[359162978,1745755838368,-400.0,0.00019896,2]
[359162979,1745755838388,-400.0,0.00019896,2]
[359162980,1745755838398,-400.0,0.00019896,2]
[359162981,1745755838408,-400.0,0.00019896,2]
[359162982,1745755838418,-400.0,0.00019896,2]
[359162983,1745755838428,-400.0,0.00019896,2]
[359162984,1745755838437,-400.0,0.00019896,2]
[359162985,1745755838446,-400.0,0.00019896,2]
[359162986,1745755838456,-445.31185695,0.00019896,2]
[359162987,1745755838466,-400.0,0.00019896,2]
[359162988,1745755838475,-400.0,0.00019896,2]
[359162989,1745755838485,-400.0,0.00019896,2]
[359162990,1745755838496,-512.57,0.00019896,2]
[359162991,1745755838506,-400.0,0.00019896,2]
[359162992,1745755838516,-463.43,0.00019896,2]
[359162993,1745755838525,-400.0,0.00019896,2]
[359162994,1745755838535,-400.0,0.00019896,2]
[359162995,1745755838544,-461.25,0.00019896,2]
[359162996,1745755838554,-407.07,0.00019896,2]
[359162997,1745755838564,-237.55652595,0.00019896,2]
[359162998,1745755838573,-400.0,0.00019896,2]
[359162999,1745755838583,-400.0,0.00019896,2]
[359163000,1745755838592,-400.0,0.00019896,2]
[359163001,1745755838606,-400.0,0.00019896,2]
[359163002,1745755838615,-400.0,0.00019896,2]
[359163003,1745755838624,-400.0,0.00019896,2]
[359163004,1745755838633,-400.0,0.00019896,2]
[359163005,1745755838643,-400.0,0.00019896,2]
[359163006,1745755838652,-446.48,0.00019896,2]
[359163007,1745755838663,-400.0,0.00019896,2]
[359163008,1745755838672,-400.0,0.00019896,2]
[359163009,1745755838682,-400.0,0.00019896,2]
[359163010,1745755838691,-409.66,0.00019896,2]
[359163011,1745755838701,-400.0,0.00019896,2]
[359163012,1745755838710,-400.0,0.00019896,2]
[359163013,1745755838720,-400.0,0.00019896,2]
[359163014,1745755838729,-400.0,0.00019896,2]
[359163015,1745755838739,-400.0,0.00019896,2]
[359163016,1745755838749,-429.43,0.00019896,2]
[359163017,1745755838759,-400.0,0.00019896,2]
[359163018,1745755838768,-400.0,0.00019896,2]
[359163019,1745755838777,-400.0,0.00019896,2]
[359163020,1745755838786,-400.0,0.00019896,2]
[359163021,1745755838799,-400.0,0.00019896,2]
[359163022,1745755838808,-400.0,0.00019896,2]
[359163023,1745755838818,-400.0,0.00019896,2]
[359163024,1745755838827,-92.61806328,0.00019896,2]
[359163025,1745755839955,-307.38193672,0.00019896,2]
[359163026,1745755839964,-681.87,0.00019896,2]
[359163027,1745755839973,-400.0,0.00019896,2]
[359163028,1745755839982,-400.0,0.00019896,2]
[359163029,1745755839991,-400.0,0.00019896,2]
[359163030,1745755840001,-400.0,0.00019896,2]
[359163031,1745755840011,-400.0,0.00019896,2]
[359163032,1745755840020,-400.0,0.00019896,2]
[359163033,1745755840030,-400.0,0.00019896,2]
[359163034,1745755840041,-400.0,0.00019896,2]
[359163035,1745755840051,-400.0,0.00019896,2]
[359163036,1745755840061,-400.0,0.00019896,2]
[359163037,1745755840070,-400.0,0.00019896,2]
[359163038,1745755840081,-400.0,0.00019896,2]
[359163039,1745755840090,-400.0,0.00019896,2]
[359163040,1745755840099,-392.29799495,0.00019896,2]
[359163041,1745755840110,-424.79,0.00019896,2]
[359163042,1745755840123,-467.82662787,0.00019896,2]
[359163043,1745755840134,-518.55050666,0.00019896,2]
[359163044,1745755840143,-400.0,0.00019896,2]
[359163045,1745755840154,-482.4,0.00019896,2]
[359163046,1745755840165,-400.0,0.00019896,2]
[359163047,1745755840174,-400.0,0.00019896,2]
[359163048,1745755840184,-400.0,0.00019896,2]
[359163049,1745755840193,-455.25,0.00019896,2]
[359163050,1745755840202,-400.0,0.00019896,2]
[359163051,1745755840211,-400.0,0.00019896,2]
[359163052,1745755840221,-400.0,0.00019896,2]
[359163053,1745755840231,-1845.07,0.00019896,2]
[359163054,1745755840240,-400.0,0.00019896,2]
[359163055,1745755840250,-400.0,0.00019896,2]
[359163056,1745755840260,-400.0,0.00019896,2]
[359163057,1745755840269,-400.0,0.00019896,2]
[359163058,1745755840278,-400.0,0.00019896,2]
[359163059,1745755840288,-7432.93,0.00019896,2]
[359163060,1745755840297,-400.0,0.00019896,2]
[359163061,1745755840306,-400.0,0.00019896,2]
[359163062,1745755840315,-400.0,0.00019896,2]
[359163063,1745755840325,-400.0,0.00019896,2]
[359163064,1745755840334,-400.0,0.00019896,2]
[359163065,1745755840344,-1455.44,0.00019896,2]
[359163066,1745755840354,-400.0,0.00019896,2]
[359163067,1745755840366,-400.0,0.00019896,2]
[359163068,1745755840376,-460.78475467,0.00019896,2]
[359163070,1745755840385,-400.0,0.00019896,2]
[359163071,1745755840395,-400.0,0.00019896,2]
[359163072,1745755840406,-400.0,0.00019896,2]
[359163073,1745755840415,-400.0,0.00019896,2]
[359163074,1745755840424,-400.0,0.00019896,2]
[359163075,1745755840433,-50866.98,0.00019896,2]
[359163076,1745755840442,-724.56,0.00019896,2]
[359163077,1745755840451,-400.0,0.00019896,2]
[359163078,1745755840460,-400.0,0.00019896,2]
[359163079,1745755840470,-400.0,0.00019896,2]
[359163080,1745755840479,-5927.85,0.00019896,2]
[359163083,1745755840490,-347.50106306,0.00019896,2]
[359163086,1745755840503,-52.49893694,0.00019896,2]
[359163089,1745755840512,-2005.64,0.00019896,2]
[359163091,1745755840521,-400.0,0.00019896,2]
[359163092,1745755840530,-375.32712806,0.00019896,2]
[359163093,1745755840540,-2880.33,0.00019896,2]
[359163094,1745755840549,-400.0,0.00019896,2]
[359163095,1745755840558,-400.0,0.00019896,2]
[359163096,1745755840567,-400.0,0.00019896,2]
[359163097,1745755840576,-400.0,0.00019896,2]
[359163099,1745755840585,-400.0,0.00019896,2]
[359163101,1745755840594,-400.0,0.00019896,2]
[359163102,1745755840607,-400.0,0.00019896,2]
[359163104,1745755840616,-1001.17,0.00019896,2]
[359163106,1745755840626,-412.21,0.00019896,2]
[359163109,1745755840636,-400.0,0.00019896,2]
[359163111,1745755840648,-441.36,0.00019896,2]
[359163112,1745755840657,-400.0,0.00019896,2]
[359163114,1745755840667,-400.0,0.00019896,2]
[359163117,1745755840678,-400.0,0.00019896,2]
[359163119,1745755840687,-29.27635908,0.00019896,2]
[359163122,1745755840713,-370.72364092,0.00019896,2]
[359163124,1745755840722,-29.35119291,0.00019896,2]
[359163126,1745755840733,-370.64880709,0.00019896,2]
[359163128,1745755840743,-400.0,0.00019896,2]
[359163129,1745755840753,-400.0,0.00019896,2]
[359163130,1745755840762,-400.0,0.00019896,2]
[359163131,1745755840771,-400.0,0.00019896,2]
[359163132,1745755840781,-400.0,0.00019896,2]
[359163133,1745755840790,-400.0,0.00019896,2]
[359163134,1745755840799,-400.0,0.00019896,2]
[359163135,1745755840809,-400.0,0.00019896,2]
[359163136,1745755840818,-400.0,0.00019896,2]
[359163137,1745755840827,-400.0,0.00019896,2]
[359163138,1745755840836,-400.0,0.00019896,2]
[359163139,1745755840845,-400.0,0.00019896,2]
[359163140,1745755840854,-400.0,0.00019896,2]
[359163141,1745755840863,-400.0,0.00019896,2]
[359163142,1745755840872,-400.0,0.00019896,2]
[359163143,1745755840881,-400.0,0.00019896,2]
[359163144,1745755840894,-400.0,0.00019896,2]
[359163145,1745755840903,-400.0,0.00019896,2]
[359163146,1745755840914,-400.0,0.00019896,2]
[359163147,1745755840923,-400.0,0.00019896,2]
[359163148,1745755840934,-400.0,0.00019896,2]
[359163149,1745755840944,-400.0,0.00019896,2]
[359163150,1745755840955,-3272.71,0.00019896,2]
[359163151,1745755840965,-400.0,0.00019896,2]
[359163152,1745755840974,-400.0,0.00019896,2]
[359163153,1745755840983,-404.0352773,0.00019896,2]
[359163154,1745755840993,-400.0,0.00019896,2]
[359163155,1745755841002,-400.0,0.00019896,2]
[359163156,1745755841011,-989.37,0.00019896,2]
[359163157,1745755841021,-400.0,0.00019896,2]
[359163158,1745755841030,-400.0,0.00019896,2]
[359163159,1745755841039,-307.73300286,0.00019896,2]
[359163160,1745755841049,-400.0,0.00019896,2]
[359163161,1745755841058,-400.0,0.00019896,2]
[359163162,1745755841068,-557.63,0.00019896,2]
[359163163,1745755841077,-400.0,0.00019896,2]
[359163164,1745755841086,-400.0,0.00019896,2]
[359163165,1745755841095,-400.0,0.00019896,2]
[359163166,1745755841104,-443.97,0.00019896,2]
[359163167,1745755841114,-400.0,0.00019896,2]
[359163168,1745755841123,-400.0,0.00019896,2]
[359163169,1745755841132,-462.95,0.00019896,2]
[359163170,1745755841141,-441.22,0.00019896,2]